bitfinex/quotes_ETHUSD_20251012
["timestamp","ask_amount","ask_price","bid_price","bid_amount"]
[1760291125175,2.5536,4156.6,4154.7,0.2147]
[1760291125374,1.92,4156.1,4154.7,0.2147]
[1760291125593,1.92,4155.9,4152.9,2.40795337]
[1760291125776,0.6336,4155.7,4153.8,0.4365]
[1760291125978,5.561878,4155.6,4154.1,2.40726029]
[1760291126161,1.92,4155.3,4154.1,2.40726029]
[1760291126368,0.6336,4155.0,4153.8,0.4365]
[1760291126563,2.5536,4155.0,4153.9,2.4073762]
[1760291126859,1.92,4155.8,4154.0,0.4365]
[1760291127059,1.92,4155.9,4154.1,0.2147]
[1760291127282,3.03978402,4156.0,4152.4,15.50442135]
[1760291127283,0.6336,4155.3,4153.5,0.4365]
[1760291127557,0.12,4155.0,4154.3,0.12]
[1760291127863,0.4446623,4154.9,4154.4,2.40708646]
[1760291128087,0.12,4155.0,4154.5,2.40697595]
[1760291128285,0.12,4155.0,4154.3,0.12]
[1760291128519,1.92,4154.8,4154.3,0.12]
[1760291128804,1.92,4154.6,4154.0,0.12]
[1760291129378,3.25951664,4154.7,4154.0,0.12]
[1760291129379,1.92,4154.5,4154.0,0.12]
[1760291129587,4.920646,4154.3,4152.9,0.4365]
[1760291129909,0.6336,4154.3,4153.5,2.40755684]
[1760291130205,0.6336,4154.4,4152.9,2.84444326]
[1760291130574,0.6336,4154.6,4153.0,2.4078979]
[1760291130879,2.5536,4154.4,4153.6,2.40754494]
[1760291131086,0.26526,4154.3,4153.7,2.40744594]
[1760291131302,2.40662371,4155.2,4151.5,1.92]
[1760291131303,0.099,4155.1,4153.3,0.4365]
[1760291131495,2.5536,4154.8,4153.9,2.40731944]
[1760291131809,1.92,4155.3,4152.2,0.4365]
[1760291131810,0.6336,4153.7,4152.2,0.4365]
[1760291131975,0.6336,4153.7,4151.7,2.84509886]
[1760291131976,2.5536,4153.5,4151.7,2.84509886]
[1760291132302,0.6336,4153.5,4151.8,0.4365]
[1760291132507,0.52509361,4153.5,4152.9,2.40789986]
[1760291132802,0.52509361,4153.5,4152.2,0.4365]
[1760291133105,0.6336,4153.6,4152.8,2.40797957]
[1760291133106,2.5536,4153.6,4152.8,2.40797957]
[1760291133403,0.6336,4153.6,4152.2,0.4365]
[1760291133712,2.525184,4154.1,4153.4,2.40765307]
[1760291134007,0.0999,4156.6,4154.8,2.40685472]
[1760291134208,0.0999,4156.1,4154.8,2.40685472]
[1760291134372,2.344124,4156.4,4154.8,2.84335472]
[1760291134573,0.50365044,4156.3,4155.0,2.4066865]
[1760291134773,0.50365044,4156.3,4154.8,0.4365]
[1760291134774,0.2865,4156.5,4155.9,2.40620409]
[1760291135004,0.003,4157.1,4156.3,2.40595536]
[1760291135211,0.72384477,4156.8,4156.2,2.40602952]
[1760291135503,2.69503699,4157.1,4156.3,2.40598417]
[1760291135695,4.272675,4157.0,4156.3,2.40598417]
[1760291135893,8.098287,4156.8,4155.9,2.40616136]
[1760291136096,0.6336,4156.7,4155.2,0.4365]
[1760291136300,3.03935495,4156.7,4155.9,2.406165]
[1760291137105,4.9593004,4156.8,4156.0,2.40615016]
[1760291137280,0.6336,4156.6,4155.2,2.84307048]
[1760291137480,2.5536,4156.8,4156.1,2.40605696]
[1760291137694,1.92,4156.4,4155.1,0.002]
[1760291137907,0.6336,4156.6,4156.0,2.40615526]
[1760291138107,1.92,4156.2,4155.1,0.002]
[1760291138310,0.6336,4156.2,4155.1,0.002]
[1760291138811,0.6336,4156.3,4155.8,2.40625473]
[1760291139110,0.099,4156.3,4155.8,2.40625473]
[1760291139322,2.40563881,4156.9,4155.2,0.4365]
[1760291139323,2.5536,4156.8,4155.2,0.4365]
[1760291139480,0.6336,4156.8,4155.4,2.40650719]
[1760291139682,0.004,4157.1,4155.5,0.4365]
[1760291139878,0.00861345,4157.9,4157.4,2.40534442]
[1760291140108,0.00861345,4157.9,4157.8,2.40511809]
[1760291140497,0.00861345,4157.9,4157.8,2.84161809]
[1760291140699,0.00861345,4157.9,4156.7,0.2147]
[1760291140700,1.92,4157.8,4156.7,0.2147]
[1760291140877,7.368492,4157.6,4156.2,0.2147]
[1760291141081,4.279823,4157.5,4156.1,0.4365]
[1760291141302,2.0412,4157.5,4156.7,2.40575212]
[1760291141507,0.6336,4157.3,4156.1,0.4365]
[1760291141706,0.6336,4157.3,4156.2,2.40604398]
[1760291142011,0.31600918,4157.2,4156.5,2.40585296]
[1760291142207,0.31600918,4157.2,4156.1,0.4365]
[1760291142414,0.31600918,4157.2,4156.2,2.40604398]
[1760291142710,0.1212,4157.5,4156.8,2.40569158]
[1760291143082,0.1212,4157.5,4155.8,0.2147]
[1760291143083,1.92,4157.4,4155.9,2.40621766]
[1760291143277,2.40548942,4157.2,4156.2,2.40600043]
[1760291143499,3.303902,4157.3,4156.6,2.40579977]
[1760291143699,2.74803239,4157.2,4156.1,2.40606638]
[1760291143939,0.3425102,4157.2,4156.4,2.40591964]
[1760291144123,2.40547858,4157.2,4156.4,2.40591964]
[1760291144307,0.6336,4157.3,4156.5,2.40586056]
[1760291144506,3.03906304,4157.3,4156.4,2.40588551]
[1760291144816,0.6336,4157.3,4156.5,2.40586057]
[1760291145135,2.40548324,4157.2,4156.5,2.40586518]
[1760291145323,0.24054832,4157.1,4156.5,2.40586518]
[1760291145631,0.24054832,4157.1,4156.8,2.40566026]
[1760291145805,1.92,4157.2,4156.4,2.40587139]
[1760291146002,0.1212,4157.5,4155.8,0.6512]
[1760291146207,2.725842,4157.3,4156.7,2.40575034]
[1760291146607,2.725842,4157.3,4156.5,2.40581493]
[1760291146805,2.40540737,4157.3,4155.8,0.6512]
[1760291147119,0.63666074,4157.2,4156.3,2.4059698]
[1760291147326,0.63666074,4157.2,4156.8,2.40568191]
[1760291147500,2.40484123,4158.3,4155.8,0.6512]
[1760291147501,1e-08,4157.9,4156.9,0.433]
[1760291148255,1e-08,4157.9,4157.1,2.40547324]
[1760291148538,0.12670001,4157.9,4156.3,0.433]
[1760291148706,3.012,4157.8,4157.2,2.40541404]
[1760291148905,3.012,4157.8,4157.1,2.40551626]
[1760291149227,0.55437149,4157.7,4157.2,2.40545082]
[1760291149426,0.55437149,4157.7,4157.0,2.40557402]
[1760291149427,2.697982,4157.8,4157.3,2.40539726]
[1760291149843,0.24670001,4157.9,4157.4,2.40533514]
[1760291150139,0.24670001,4157.9,4157.2,0.12]
[1760291150342,0.24670001,4157.9,4157.2,2.52545402]
[1760291150549,2.65177054,4157.9,4157.2,0.12]
[1760291150700,1.92,4157.5,4155.6,0.433]
[1760291150905,5.34857554,4157.3,4156.4,2.40587832]
[1760291151207,4.32547732,4157.2,4156.4,2.40592605]
[1760291151533,4.32547732,4157.2,4156.3,2.40597558]
[1760291151745,4.32547732,4157.2,4156.4,2.40591748]
[1760291152038,4.32547732,4157.2,4155.5,0.2195]
[1760291152039,6.710936,4156.6,4155.2,0.2195]
[1760291152243,0.6336,4156.4,4155.6,2.40634778]
[1760291152459,1.92,4156.6,4155.1,0.002]
[1760291152749,0.1203,4159.5,4157.8,2.40511809]
[1760291152750,1e-08,4157.9,4157.8,2.40511809]
[1760291153048,1e-08,4157.9,4157.5,2.40527841]
[1760291153201,1e-08,4157.9,4157.8,2.40511809]
[1760291155135,1e-08,4157.9,4157.8,2.83811809]
[1760291155444,1e-08,4157.9,4157.8,2.40511809]
[1760291155617,1e-08,4157.9,4157.8,2.83811809]
[1760291156855,0.00100001,4157.9,4157.8,2.83811809]
[1760291159622,0.00100001,4157.9,4157.8,3.47171809]
[1760291161153,0.00100001,4157.9,4157.8,3.59171809]
[1760291161457,0.00100001,4157.9,4157.8,4.19140965]
[1760291161870,0.00100001,4157.9,4157.8,6.11140965]
[1760291163459,0.00100001,4157.9,4157.8,5.99140965]
[1760291163824,0.00100001,4157.9,4157.8,3.43780965]
[1760291164559,0.00100001,4157.9,4157.8,4.07140965]
[1760291166228,0.00100001,4157.9,4157.8,3.43780965]
[1760291167060,0.00100001,4157.9,4157.8,2.83811809]
[1760291169641,0.00100001,4157.9,4157.8,5.39171809]
[1760291171033,0.00100001,4157.9,4157.8,4.75811809]
[1760291171228,0.00100001,4157.9,4157.8,2.83811809]
[1760291173333,0.00100001,4157.9,4157.8,2.40511809]
[1760291173579,0.00100001,4157.9,4157.8,2.52511809]
[1760291173759,0.00100001,4157.9,4157.8,0.12]
[1760291174059,0.00100001,4157.9,4157.8,2.95811809]
[1760291174264,0.00100001,4157.9,4157.8,3.4944528]
[1760291176074,0.00100001,4157.9,4157.8,3.4964528]
[1760291177087,0.00100001,4157.9,4157.8,2.96011809]
[1760291177340,0.00100001,4157.9,4157.8,2.52711809]
[1760291177595,0.00100001,4157.9,4157.8,2.96481809]
[1760291179063,0.00100001,4157.9,4157.8,2.52711809]
[1760291179395,0.00100001,4157.9,4157.8,2.96481809]
[1760291179599,0.00100001,4157.9,4157.8,3.5018228]
[1760291179802,0.00100001,4157.9,4157.8,2.96481809]
[1760291179960,0.00100001,4157.9,4157.8,2.52711809]
[1760291180155,0.00100001,4157.9,4157.8,2.96481809]
[1760291180975,0.00100001,4157.9,4157.8,2.52711809]
[1760291181487,0.00100001,4157.9,4157.8,2.40711809]
[1760291181860,0.00100001,4157.9,4156.8,0.4377]
[1760291181861,10.65626225,4157.9,4157.1,2.40551986]
[1760291182114,3.71932622,4157.8,4157.1,2.40548762]
[1760291182263,0.6336,4157.7,4156.4,2.4059282]
[1760291182596,0.6336,4157.8,4157.3,2.40539947]
[1760291182887,2.5536,4157.4,4156.8,2.40569184]
[1760291183086,2.5536,4157.4,4156.3,0.002]
[1760291183087,0.6336,4157.5,4156.9,2.40562277]
[1760291183259,1.13948333,4157.5,4157.0,2.40555759]
[1760291183460,0.7337,4157.4,4156.8,2.40564287]
[1760291183688,2.6537,4157.4,4156.9,2.40562673]
[1760291183891,0.7337,4157.4,4157.0,2.40556128]
[1760291184273,0.7337,4157.4,4157.0,2.40557796]
[1760291184474,0.1001,4157.3,4157.0,2.40557796]
[1760291184675,0.1001,4157.2,4157.0,2.40557796]
[1760291184874,0.6336,4157.7,4156.5,2.40583446]
[1760291184875,0.1001,4157.1,4156.5,2.40583446]
[1760291185086,3.03878997,4157.7,4156.3,0.002]
[1760291185087,3.0393516,4156.8,4156.3,0.002]
[1760291185391,0.6336,4156.6,4156.3,0.002]
[1760291185772,0.6336,4156.4,4156.3,0.002]
[1760291186301,2.6537,4156.4,4156.3,0.002]
[1760291188787,9.0122,4156.4,4156.3,0.002]
[1760291189106,10.15400782,4156.4,4156.3,0.002]
[1760291189475,12.55993602,4156.4,4156.3,0.002]
[1760291189692,8.36027802,4156.4,4156.3,0.002]
[1760291189869,7.11355982,4156.4,4156.3,0.002]
[1760291190605,2.6537,4156.4,4156.3,0.002]
[1760291192940,2.6537,4156.4,4156.3,2.40798609]
[1760291193222,2.6537,4156.4,4156.3,0.002]
[1760291193626,1.92,4156.4,4156.3,2.40798609]
[1760291193841,2.1401,4156.4,4156.3,2.40798609]
[1760291193999,0.12,4156.4,4156.3,2.40798609]
[1760291194201,0.6336,4156.9,4156.6,2.40578851]
[1760291194497,0.7536,4156.7,4156.6,2.40578851]
[1760291195511,0.001,4158.4,4156.6,2.40578851]
[1760291195512,0.22730001,4157.9,4156.7,2.40575456]
[1760291195740,0.1001,4157.8,4156.5,2.40587032]
[1760291196037,0.6336,4157.7,4157.3,2.40536287]
[1760291196193,0.1001,4157.6,4156.3,0.002]
[1760291196400,0.1001,4157.6,4157.1,2.40550421]
[1760291196599,0.7337,4157.5,4157.1,2.40550421]
[1760291196927,0.44522707,4157.7,4157.4,2.40534949]
[1760291197098,0.12720001,4157.9,4157.5,2.40528064]
[1760291197099,0.1001,4157.8,4157.5,2.40528064]
[1760291197299,0.6336,4157.7,4157.5,2.40528064]
[1760291197509,0.6336,4157.7,4157.4,2.40534949]
[1760291197832,0.1001,4157.8,4157.5,2.40524938]
[1760291198014,0.1001,4157.8,4157.2,2.40542277]
[1760291198015,2.894,4157.8,4157.2,2.40542277]
[1760291198219,0.6336,4157.6,4157.0,2.4055776]
[1760291198543,0.6336,4156.4,4155.8,0.002]
[1760291198897,0.7337,4156.4,4155.8,0.002]
[1760291199098,6.3053,4156.4,4155.8,0.002]
[1760291199311,2.6537,4156.4,4155.8,0.002]
[1760291199516,18.93503874,4156.4,4155.8,0.002]
[1760291199694,30.81103274,4156.4,4155.8,0.002]
[1760291199938,28.62809974,4156.4,4155.8,0.002]
[1760291200534,28.92489808,4156.4,4155.8,0.002]
[1760291200744,26.838921,4155.8,4155.1,0.002]
[1760291200942,8.70347302,4155.2,4155.1,0.002]
[1760291201452,8.80447302,4155.2,4155.1,0.002]
[1760291201618,9.10127136,4155.2,4155.1,0.002]
[1760291201820,35.54652136,4155.2,4155.1,0.002]
[1760291203166,3.04045472,4154.8,4154.7,0.002]
[1760291203315,1.92,4154.7,4151.9,0.4377]
[1760291203515,0.6336,4153.2,4150.5,2.40930618]
[1760291203753,0.6336,4153.2,4152.6,2.40810234]
[1760291204047,0.293,4153.3,4152.3,2.40829951]
[1760291204239,0.293,4153.3,4151.4,0.4377]
[1760291204240,0.6336,4153.0,4151.4,0.4377]
[1760291204549,0.1019,4152.9,4151.4,0.4377]
[1760291204846,0.1019,4152.9,4152.5,2.40817096]
[1760291205046,0.1019,4152.8,4152.5,2.40817096]
[1760291205218,0.6336,4153.2,4152.6,2.408129]
[1760291205219,0.1019,4152.7,4152.6,2.408129]
[1760291205413,0.1019,4152.7,4152.4,2.40819227]
[1760291205613,0.1019,4152.7,4152.1,0.12]
[1760291205843,0.12,4152.8,4152.7,2.40807185]
[1760291206234,0.12,4153.0,4152.7,2.40804624]
[1760291206440,0.1893,4154.2,4152.8,2.40800797]
[1760291206637,2.81876,4154.1,4153.4,2.40762235]
[1760291206949,0.6336,4153.9,4153.2,2.40777077]
[1760291207156,0.6336,4153.9,4153.2,2.40775014]
[1760291207316,0.6336,4153.7,4153.0,2.40788802]
[1760291207542,0.6336,4153.7,4153.2,2.40773732]
[1760291207767,0.6336,4153.4,4151.7,0.4685]
[1760291207970,0.6336,4153.4,4152.8,2.40796825]
[1760291208172,0.6336,4153.5,4151.7,0.4685]
[1760291208385,0.6336,4153.2,4152.5,2.40818414]
[1760291208548,0.89932,4153.2,4152.7,2.40804026]
[1760291208750,0.6336,4153.5,4151.7,0.4685]
[1760291208984,0.6336,4153.5,4151.8,2.40859386]
[1760291209282,0.6336,4153.5,4153.0,2.40786642]
[1760291209466,0.6336,4153.5,4151.7,0.4685]
[1760291209467,0.6336,4153.3,4151.7,0.4685]
[1760291209680,0.6336,4153.3,4152.9,2.40790021]
[1760291209869,0.6336,4153.3,4152.8,2.40801193]
[1760291209870,0.1036,4153.2,4152.8,2.40801193]
[1760291210089,0.3173023,4153.1,4152.4,2.40819789]
[1760291210252,0.6336,4153.1,4152.5,2.408141]
[1760291210452,1.92,4152.9,4151.3,0.4685]
[1760291210771,0.1036,4152.8,4152.2,2.40833973]
[1760291210937,0.1036,4152.8,4152.4,2.40822158]
[1760291211138,0.36932,4152.8,4151.4,2.40882593]
[1760291211369,0.7372,4152.8,4152.7,2.40807185]
[1760291211773,0.7372,4152.8,4152.6,2.40811384]
[1760291212143,0.6336,4152.8,4152.6,2.40811384]
[1760291212344,0.1036,4152.7,4152.6,2.40811384]
[1760291212751,0.1036,4152.7,4151.3,0.4685]
[1760291212752,0.6336,4152.6,4152.5,2.40818783]
[1760291212950,0.7372,4152.6,4152.4,2.40823817]
[1760291213157,0.1036,4152.6,4152.5,2.40818783]
[1760291214046,0.6336,4153.3,4152.6,2.40808323]
[1760291214280,2.5536,4153.1,4152.4,2.40824296]
[1760291214483,0.6336,4153.1,4152.7,2.40804951]
[1760291214657,2.40759706,4153.6,4152.3,2.40830383]
[1760291214985,0.7372,4153.5,4152.2,2.4103165]
[1760291215174,2.179598,4153.6,4153.2,2.40775384]
[1760291215374,2.179598,4153.6,4153.1,2.40782155]
[1760291215375,0.1036,4153.6,4153.1,2.40782155]
[1760291215578,1.92,4154.1,4153.3,2.4076824]
[1760291215757,2.51086833,4154.1,4153.3,2.4076824]
[1760291215958,0.6336,4153.5,4152.2,0.002]
[1760291216197,3.04137007,4153.3,4152.2,0.002]
[1760291216368,0.6336,4152.9,4152.3,2.40830383]
[1760291216579,0.12,4152.7,4152.5,2.4081326]
[1760291217259,0.2236,4152.7,4152.2,0.002]
[1760291217460,0.2236,4152.7,4152.3,2.40830383]
[1760291217695,0.1036,4152.6,4152.5,2.40818783]
[1760291217995,0.12,4152.7,4152.2,0.002]
[1760291218744,0.12,4152.7,4152.6,2.40812984]
[1760291219379,0.2236,4152.7,4152.6,2.40812984]
[1760291219817,0.12,4152.7,4152.6,2.40812984]
[1760291221210,0.12,4153.1,4152.6,2.88970688]
[1760291221366,0.1036,4153.0,4152.9,2.40793571]
[1760291222373,0.99999999,4157.5,4152.8,0.2358]
[1760291222727,2.859867,4155.0,4152.9,1.1021]
[1760291223000,0.1053,4155.1,4152.9,1.1021]
[1760291223001,12.714879,4154.8,4153.0,2.4078979]
[1760291223169,8.17466464,4155.0,4154.0,2.4072682]
[1760291223369,0.1053,4154.7,4154.1,2.40722476]
[1760291223677,0.1053,4154.6,4154.0,2.40730381]
[1760291223989,3.776896,4154.5,4153.9,2.40737417]
[1760291224191,3.124457,4154.5,4153.3,2.40767094]
[1760291224365,1.92,4154.4,4153.8,2.40739603]
[1760291224563,0.6897757,4154.4,4152.5,0.4685]
[1760291224764,1.92,4155.2,4154.5,2.40701251]
[1760291225006,0.1053,4155.1,4153.3,0.4685]
[1760291225290,0.1053,4155.1,4154.6,2.40695843]
[1760291225595,0.1053,4155.0,4154.8,2.40680889]
[1760291225890,0.1053,4155.0,4153.7,0.4685]
[1760291226314,0.1053,4155.0,4154.9,2.40679679]
[1760291226880,0.1053,4155.0,4154.8,2.40683739]
[1760291227074,0.1053,4155.0,4154.9,2.40679679]
[1760291227274,0.1053,4155.0,4153.7,0.4685]
[1760291227275,0.1877,4155.3,4155.2,2.40662302]
[1760291227470,0.1053,4155.9,4155.6,2.40639137]
[1760291227671,0.1061,4155.8,4155.4,2.40649541]
[1760291227871,0.1061,4155.7,4153.5,0.4685]
[1760291228107,0.1061,4155.7,4153.5,2.87610668]
[1760291228108,4.7704,4155.4,4153.5,2.87610668]
[1760291228293,0.1061,4155.4,4153.6,0.4685]
[1760291228484,0.1061,4155.4,4155.0,2.40672457]
[1760291228691,2.5536,4155.6,4155.0,2.40672457]
[1760291228886,0.1061,4155.3,4153.9,0.4685]
[1760291229089,0.30871,4155.3,4155.2,2.40662302]
[1760291229297,0.6336,4155.7,4155.0,2.40673863]
[1760291229504,0.6336,4155.7,4155.2,2.40661987]
[1760291229809,2.59467686,4156.0,4154.2,0.2358]
[1760291229810,0.2946,4156.0,4154.2,0.2358]
[1760291230036,0.2946,4156.0,4155.7,2.406288]
[1760291230309,4.5895,4156.4,4155.9,2.40616287]
[1760291230611,4.5895,4156.4,4155.5,2.40641934]
[1760291230612,0.79854197,4156.3,4155.5,2.40641934]
[1760291230910,0.79854197,4156.3,4154.7,2.40691265]
[1760291231212,0.79854197,4156.3,3717.3,2.46]
[1760291231213,6.96971,4157.4,4154.8,2.87531093]
[1760291231399,0.099,4156.9,4154.9,2.87529679]
[1760291231598,2.40564511,4156.9,4154.9,2.87529679]
[1760291231914,0.001,4156.0,4155.9,2.40621766]
[1760291234004,0.001,4156.0,4155.9,2.87471766]
[1760291234210,0.001,4156.0,4155.9,2.40621766]
[1760291235319,0.001,4156.0,4155.7,2.40628133]
[1760291235707,0.1931,4156.0,4155.4,2.40649551]
[1760291236012,0.1931,4156.0,4155.3,2.40655872]
[1760291236499,0.1931,4156.0,4155.6,2.40638808]
[1760291237203,0.1931,4156.0,4155.3,2.40656452]
[1760291237204,0.1931,4156.0,4155.5,2.40643392]
[1760291237396,0.001,4156.0,4155.5,2.40643392]
[1760291237626,0.001,4156.0,4155.6,2.40638015]
[1760291238037,0.001,4156.0,4155.5,2.4064303]
[1760291238741,0.001,4156.0,4155.6,2.40638344]
[1760291238943,0.001,4156.0,4155.5,2.40643696]
[1760291239117,0.25160554,4156.0,4155.3,2.40656487]
[1760291239319,2.40627873,4155.8,4155.1,2.40665911]
[1760291239540,1.92,4155.7,4155.1,2.40662351]
[1760291239708,5.52921,4155.4,4153.9,0.4453]
[1760291239906,0.744921,4155.3,4154.8,2.4068225]
[1760291240115,0.1,4155.2,4154.8,2.4068225]
[1760291240332,1.92,4155.0,4154.2,2.40719916]
[1760291240555,11.832457,4155.1,4152.8,0.964]
[1760291240754,1.43749268,4155.0,4154.3,2.40709175]
[1760291241037,1.92,4154.8,4153.4,2.85294887]
[1760291241234,0.1,4154.7,4152.9,0.36098574]
[1760291241433,0.1,4154.7,4152.8,0.964]
[1760291241434,1.92,4154.2,4153.7,2.40744625]
[1760291241616,0.1,4154.2,4153.7,2.40744487]
[1760291241817,7.91649791,4154.4,4153.7,2.40744487]
[1760291242128,7.91649791,4154.4,4152.7,0.4453]
[1760291242129,0.186,4153.8,4152.6,0.002]
[1760291242433,1.92,4153.4,4152.6,0.002]
[1760291242636,1.92,4153.2,4152.6,0.002]
[1760291243001,7.238808,4153.2,4152.6,0.002]
[1760291243204,4.32778224,4153.2,4152.6,0.002]
[1760291243605,2.40778224,4153.2,4152.6,0.002]
[1760291243800,0.8196,4153.8,4152.6,0.002]
[1760291243801,0.6336,4152.9,4152.6,0.002]
[1760291244005,1.92,4152.8,4152.6,0.002]
[1760291244249,2.5536,4152.7,4152.6,0.002]
[1760291244415,0.7344,4152.7,4152.6,0.002]
[1760291244834,3.14247185,4152.7,4152.6,0.002]
[1760291245511,5.06247185,4152.7,4152.6,0.002]
[1760291245943,13.58694,4152.7,4152.6,0.002]
[1760291246127,8.42467585,4152.7,4152.6,0.002]
[1760291247049,11.25288185,4152.7,4152.6,0.002]
[1760291248036,17.16314985,4152.7,4152.6,0.002]
[1760291248423,14.00286285,4152.7,4152.6,0.002]
[1760291248744,5.06247185,4152.7,4152.6,0.002]
[1760291248960,2.6544,4152.7,4152.6,0.002]
[1760291249167,8.579732,4152.7,4152.6,0.002]
[1760291249316,10.98780385,4152.7,4152.6,0.002]
[1760291249670,25.76753,4151.9,4151.8,0.002]
[1760291249863,3.04230989,4151.6,4149.1,0.002]
[1760291250019,4.471341,4150.7,4149.2,2.41010315]
[1760291250227,1.92,4150.5,4149.1,0.002]
[1760291250527,1.92,4150.4,4149.1,0.002]
[1760291250733,0.6336,4150.9,4150.2,2.40950991]
[1760291250930,0.6336,4150.9,4149.1,0.002]
[1760291250931,2.40935628,4150.5,4149.1,0.002]
[1760291251145,2.5536,4150.1,4149.1,0.002]
[1760291251351,2.5536,4149.9,4149.1,0.002]
[1760291251524,25.07732965,4149.2,4149.1,0.002]
[1760291251722,25.07732965,4149.2,4148.3,0.002]
[1760291251723,3.04393551,4148.8,4148.3,0.002]
[1760291252039,5.85231748,4148.8,4148.3,0.002]
[1760291252355,3.45567548,4148.8,4148.3,0.002]
[1760291252657,1.92,4148.8,4148.3,0.002]
[1760291252850,1.92,4148.8,4148.7,2.41239361]
[1760291253629,0.1257,4149.6,4149.1,2.41010484]
[1760291253823,0.1257,4149.6,4148.9,2.41023545]
[1760291253824,1.92,4149.4,4148.7,0.002]
[1760291254045,1.92,4149.4,4149.0,2.41020644]
[1760291254253,0.1015,4149.3,4148.7,0.002]
[1760291254448,0.1257,4149.6,4149.1,2.41010663]
[1760291254449,1.92,4149.4,4149.1,2.41010663]
[1760291254764,0.1015,4149.3,4148.7,0.002]
[1760291255055,8.811354,4148.8,4148.7,0.002]
[1760291255356,5.660086,4148.8,4148.7,0.002]
[1760291255546,2.6551,4148.8,4148.7,0.002]
[1760291255720,2.5536,4148.8,4148.7,0.002]
[1760291256349,2.6551,4148.8,4148.7,0.002]
[1760291256979,1.92,4148.8,4148.7,2.41239361]
[1760291258347,1.92,4148.8,4148.7,0.002]
[1760291258547,2.0215,4148.8,4148.7,0.002]
[1760291258856,4.8971,4148.8,4148.7,0.002]
[1760291259057,4.7051,4148.8,4148.7,0.002]
[1760291259267,2.6551,4148.8,4148.7,0.002]
[1760291260256,2.6551,4148.8,4148.7,2.41239361]
[1760291260459,2.6551,4148.8,4148.7,0.002]
[1760291260979,1.92,4148.8,4148.7,2.41239361]
[1760291261349,1.92,4148.8,4148.7,0.002]
[1760291261549,2.0215,4148.8,4148.7,0.002]
[1760291262577,2.0215,4148.8,4148.7,2.41239361]
[1760291262779,1.92,4148.8,4148.7,2.41239361]
[1760291263746,0.1017,4150.1,4149.0,2.41021932]
[1760291263955,0.1017,4150.1,4148.7,0.95698918]
[1760291263956,0.12,4149.9,4149.2,0.12]
[1760291264185,0.12,4149.9,4149.3,2.41004506]
[1760291264361,0.12,4149.9,4149.8,2.40975468]
[1760291264562,12.980637,4150.0,4148.7,0.49628918]
[1760291264763,0.1017,4149.9,4148.7,0.002]
[1760291264967,0.2271,4150.2,4149.9,2.40969486]
[1760291265166,0.2271,4150.2,4148.8,2.41033551]
[1760291265167,0.6336,4150.1,4150.0,2.40963855]
[1760291265583,0.7353,4150.1,4150.0,2.40963855]
[1760291266353,0.26963167,4151.5,4148.7,0.4627]
[1760291266354,0.125,4151.2,4149.5,2.4099289]
[1760291266555,15.08886695,4152.3,4151.2,2.40894199]
[1760291266556,0.1247,4151.3,4151.2,2.40894199]
[1760291266785,0.72478386,4152.1,4151.4,2.40878877]
[1760291267009,0.72478386,4152.1,4150.3,0.4607]
[1760291267010,0.72478386,4152.1,4151.6,2.40870592]
[1760291267155,0.099,4151.8,4151.6,2.40870592]
[1760291267354,0.099,4151.7,4150.4,2.40940632]
[1760291267616,0.965,4152.6,4151.3,2.40884524]
[1760291267617,2.40837243,4152.2,4151.3,2.40884524]
[1760291267786,0.965,4152.6,4151.3,2.40886651]
[1760291267787,0.6336,4151.8,4151.3,2.40886651]
[1760291267981,1.92,4151.6,4151.3,2.40886651]
[1760291268298,1.92,4152.1,4151.3,2.40884041]
[1760291268500,1.92,4151.8,4151.7,2.40865187]
[1760291268654,1.92,4151.7,4151.6,2.40869635]
[1760291268864,0.099,4152.0,4151.5,2.40872171]
[1760291269064,0.099,4152.0,4150.5,0.31028063]
[1760291269065,0.099,4152.0,4151.6,2.40869259]
[1760291269295,0.6336,4151.8,4151.4,2.40882051]
[1760291269499,0.7326,4151.8,4151.4,2.40878667]
[1760291269675,1.92,4151.6,4150.6,2.40929022]
[1760291269995,2.011,4151.6,4151.1,2.40899725]
[1760291270169,1.92,4151.3,4151.1,2.40899725]
[1760291270361,0.099,4151.2,4151.0,2.40905608]
[1760291270566,3.04221808,4151.8,4149.9,0.4608]
[1760291270803,1.92,4151.4,4150.8,2.4091491]
[1760291270976,1.92,4151.6,4149.7,2.87061275]
[1760291270977,0.099,4151.3,4149.7,2.87061275]
[1760291271300,0.099,4151.3,4151.0,2.40905299]
[1760291271472,1.92,4151.1,4149.7,0.4608]
[1760291271672,1.92,4150.9,4149.7,0.4608]
[1760291271880,3.940692,4151.0,4150.9,2.40911067]
[1760291271881,1.92,4151.0,4150.9,2.40911067]
[1760291272063,1.92,4151.0,4150.7,2.40917627]
[1760291272262,1.92,4151.0,4149.8,2.40975468]
[1760291272263,0.099,4150.9,4149.8,2.40975468]
[1760291272485,4.364733,4150.6,4149.0,2.41021932]
[1760291272696,0.099,4150.5,4149.7,2.40981062]
[1760291272904,0.099,4150.5,4148.8,0.4608]
[1760291273080,0.099,4150.5,4150.0,2.40958463]
[1760291273407,0.099,4150.4,4148.9,2.41027742]
[1760291273615,0.099,4150.4,4150.2,2.40947815]
[1760291274077,0.099,4150.3,4150.2,2.40947815]
[1760291274966,0.12,4150.5,4150.4,2.40940632]
[1760291275169,0.12,4150.8,4150.7,2.40923217]
[1760291275612,0.37762553,4153.7,4150.7,0.4608]
[1760291275778,0.37762553,4153.7,4150.8,0.24092322]
[1760291275779,5.606429,4152.4,4150.8,0.24092322]
[1760291275969,0.0992,4152.3,4150.9,0.4608]
[1760291276177,0.0992,4152.3,4152.0,2.40843654]
[1760291276375,0.0992,4152.7,4152.1,2.40837784]
[1760291276575,0.0992,4152.7,4151.0,2.40905805]
[1760291276769,3.516228,4152.6,4152.1,2.40838465]